[Event "51st La Roda Open 2025"]
[Site "La Roda"]
[Date "2025.04.20"]
[Round "9.15"]
[White "Leiva Raya, Nicolas"]
[Black "Rodriguez Garcia, Manuel Francisco"]
[Result "1/2-1/2"]
[Annotator "NA"]
[ECO "A45"]
[WhiteElo "1831"]
[BlackElo "2131"]
[PlyCount "50"]
[EventDate "2025.04.15"]
[EventType "swiss"]
[EventCountry "ESP"]
[SourceTitle "playchess.com"]
[Source "ChessBase"]
[SourceQuality "1"]
[TimeControl "5400+30"]

1. d4 {[%emt 0:00:10]} Nf6 {[%emt 0:00:05]} 2. Bf4 {[%emt 0:00:05]} g6 {[%emt 0:00:07]} 3. Nc3 {[%emt 0:00:07]} d5 {[%emt 0:00:54]} 4. e3 {[%emt 0:00:08]} Bg7 {[%emt 0:00:19]} 5. h4 {[%emt 0:00:06]} h5 {[%emt 0:00:33]} 6. Nf3 {[%emt 0:00:05]} c6 {[%emt 0:05:17]} 7. Ng5 {[%emt 0:01:10]} Bf5 {[%emt 0:01:58]} 8. Bd3 {[%emt 0:01:49]} Bxd3 {[%emt 0:00:18]} 9. Qxd3 {[%emt 0:00:07]} Nbd7 {[%emt 0:00:27]} 10. O-O {[%emt 0:03:32]} O-O {[%emt 0:01:13]} 11. Rad1 {[%emt 0:03:39]} Qb6 {[%emt 0:06:26]} 12. b3 {[%emt 0:00:14]} Rfe8 {[%emt 0:08:21]} 13. e4 {[%emt 0:00:59]} dxe4 {[%emt 0:15:35]} 14. Ncxe4 {[%emt 0:00:15]} Nxe4 {[%emt 0:00:33]} 15. Qxe4 {[%emt 0:00:09]} e5 {[%emt 0:08:32]} 16. dxe5 {[%emt 0:01:03]} Nxe5 {[%emt 0:01:03]} 17. Bxe5 {[%emt 0:00:43]} Rxe5 {[%emt 0:01:13]} 18. Qc4 {[%emt 0:01:47]} Qc7 {[%emt 0:00:53]} 19. Rd3 {[%emt 0:01:49]} Rae8 {[%emt 0:01:42]} 20. Rf3 {[%emt 0:01:49]} R8e7 {[%emt 0:01:57]} 21. g3 {[%emt 0:00:26]} b5 {[%emt 0:07:45]} 22. Qb4 {[%emt 0:03:34]} a5 {[%emt 0:36:19]} 23. Qd2 Bh6 24. c4 {[%emt 1:18:44]} Bxg5 25. hxg5 {[%emt 0:00:00]} Rd7 {[%emt 0:00:00]} 1/2-1/2

[Event "51st La Roda Open 2025"]
[Site "La Roda"]
[Date "2025.04.20"]
[Round "9.16"]
[White "Abdsattar, Alisher"]
[Black "Sanchez Carrasco, Francisco Javier"]
[Result "1/2-1/2"]
[Annotator "NA"]
[ECO "B42"]
[WhiteElo "2126"]
[BlackElo "1978"]
[PlyCount "46"]
[EventDate "2025.04.15"]
[EventType "swiss"]
[EventCountry "ESP"]
[SourceTitle "playchess.com"]
[Source "ChessBase"]
[SourceQuality "1"]
[TimeControl "5400+30"]

1. e4 {[%emt 0:00:01]} c5 {[%emt 0:00:29]} 2. Nf3 {[%emt 0:00:30]} e6 {[%emt 0:00:08]} 3. d4 {[%emt 0:00:03]} cxd4 {[%emt 0:00:07]} 4. Nxd4 {[%emt 0:00:02]} a6 {[%emt 0:00:11]} 5. Bd3 {[%emt 0:01:00]} Qc7 {[%emt 0:00:19]} 6. Qe2 {[%emt 0:01:14]} d6 {[%emt 0:01:00]} 7. c4 {[%emt 0:00:23]} Nd7 {[%emt 0:00:21]} 8. Nc3 {[%emt 0:01:28]} Ngf6 {[%emt 0:00:47]} 9. O-O {[%emt 0:00:34]} Be7 {[%emt 0:00:10]} 10. h3 {[%emt 0:04:44]} Ne5 {[%emt 0:02:00]} 11. Be3 {[%emt 0:01:53]} O-O {[%emt 0:00:29]} 12. f4 {[%emt 0:00:59]} Nxd3 {[%emt 0:00:13]} 13. Qxd3 {[%emt 0:00:02]} b6 {[%emt 0:05:48]} 14. Rac1 {[%emt 0:13:25]} Bb7 {[%emt 0:00:48]} 15. b3 {[%emt 0:04:45]} Rfe8 {[%emt 0:19:10]} 16. Bf2 {[%emt 0:11:52]} Bf8 {[%emt 0:04:46]} 17. Rfe1 {[%emt 0:02:17]} Rac8 {[%emt 0:02:42]} 18. Nf3 {[%emt 0:03:07]} Nd7 {[%emt 0:04:42]} 19. Qe3 {[%emt 0:09:26]} Qb8 {[%emt 0:03:41]} 20. Red1 {[%emt 0:06:20]} Rc7 {[%emt 0:13:05]} 21. Kh1 {[%emt 0:08:18]} Qa8 {[%emt 0:01:49]} 22. Bg3 {[%emt 0:03:04]} f5 {[%emt 0:06:40]} 23. Re1 {[%emt 0:05:37]} Rcc8 {[%emt 0:00:32]} 1/2-1/2

[Event "51st La Roda Open 2025"]
[Site "La Roda"]
[Date "2025.04.20"]
[Round "9.17"]
[White "Cordoba Picazo, Manuel Javier"]
[Black "Hernandez Leon, Sergio"]
[Result "1/2-1/2"]
[Annotator "NA"]
[ECO "A07"]
[WhiteElo "1969"]
[BlackElo "2123"]
[PlyCount "60"]
[EventDate "2025.04.15"]
[EventType "swiss"]
[EventCountry "ESP"]
[SourceTitle "playchess.com"]
[Source "ChessBase"]
[SourceQuality "1"]
[TimeControl "5400+30"]

1. Nf3 {[%emt 0:00:30]} d5 {[%emt 0:02:56]} 2. g3 {[%emt 0:00:37]} Bg4 {[%emt 0:00:43]} 3. Ne5 {[%emt 0:01:00]} Bf5 {[%emt 0:03:07]} 4. Bg2 {[%emt 0:00:26]} Nd7 {[%emt 0:00:19]} 5. d4 {[%emt 0:02:03]} e6 {[%emt 0:01:45]} 6. O-O {[%emt 0:00:19]} Bd6 {[%emt 0:00:10]} 7. Nxd7 {[%emt 0:03:11]} Qxd7 {[%emt 0:00:02]} 8. c4 {[%emt 0:00:21]} c6 {[%emt 0:00:17]} 9. Nc3 {[%emt 0:00:21]} Nf6 {[%emt 0:00:14]} 10. Bg5 {[%emt 0:01:23]} Be7 {[%emt 0:01:28]} 11. Bf4 {[%emt 0:06:47]} O-O {[%emt 0:02:24]} 12. Qa4 {[%emt 0:01:08]} Rfc8 {[%emt 0:04:22]} 13. Rfd1 {[%emt 0:03:28]} b6 {[%emt 0:10:12]} 14. Rac1 {[%emt 0:02:07]} b5 {[%emt 0:04:37]} 15. cxb5 {[%emt 0:03:14]} cxb5 {[%emt 0:00:18]} 16. Nxb5 {[%emt 0:04:39]} Ne8 {[%emt 0:09:10]} 17. Qa6 {[%emt 0:05:44]} g5 {[%emt 0:00:42]} 18. Rxc8 {[%emt 0:01:18]} Qxc8 {[%emt 0:03:20]} 19. Qxc8 {[%emt 0:00:22]} Rxc8 {[%emt 0:00:01]} 20. Bc1 {[%emt 0:24:49]} a6 {[%emt 0:09:01]} 21. Nc3 {[%emt 0:01:03]} Nd6 {[%emt 0:00:01]} 22. a3 {[%emt 0:05:17]} Nc4 {[%emt 0:02:08]} 23. e4 {[%emt 0:00:27]} dxe4 {[%emt 0:00:11]} 24. Nxe4 {[%emt 0:00:28]} h6 {[%emt 0:00:30]} 25. f3 {[%emt 0:02:45]} a5 {[%emt 0:04:55]} 26. Bf1 {[%emt 0:00:31]} Kg7 {[%emt 0:00:14]} 27. Kf2 {[%emt 0:06:15]} Nxb2 {[%emt 0:10:48]} 28. Bxb2 {[%emt 0:00:51]} Rc2+ {[%emt 0:00:06]} 29. Rd2 {[%emt 0:02:06]} Bxe4 {[%emt 0:00:07]} 30. Rxc2 {[%emt 0:01:13]} Bxc2 {[%emt 0:00:33]} 1/2-1/2

[Event "51st La Roda Open 2025"]
[Site "La Roda"]
[Date "2025.04.20"]
[Round "9.18"]
[White "Perez Travieso, Saul"]
[Black "Arroyo Rodriguez, Jesus"]
[Result "1-0"]
[Annotator "NA"]
[ECO "A26"]
[WhiteElo "2111"]
[BlackElo "1954"]
[PlyCount "103"]
[EventDate "2025.04.15"]
[EventType "swiss"]
[EventCountry "ESP"]
[SourceTitle "playchess.com"]
[Source "ChessBase"]
[SourceQuality "1"]
[TimeControl "5400+30"]

1. Nf3 {[%emt 0:00:12]} Nf6 {[%emt 0:08:20]} 2. g3 {[%emt 0:00:47]} g6 {[%emt 0:01:23]} 3. Bg2 {[%emt 0:00:07]} Bg7 {[%emt 0:00:12]} 4. c4 {[%emt 0:00:15]} d6 {[%emt 0:01:10]} 5. Nc3 {[%emt 0:00:06]} O-O {[%emt 0:00:35]} 6. O-O {[%emt 0:00:04]} Nc6 {[%emt 0:00:36]} 7. d3 {[%emt 0:00:06]} e5 {[%emt 0:01:41]} 8. Rb1 {[%emt 0:00:04]} a5 {[%emt 0:00:10]} 9. a3 {[%emt 0:00:03]} Bf5 {[%emt 0:02:54]} 10. Nh4 {[%emt 0:02:10]} Be6 {[%emt 0:05:13]} 11. b4 {[%emt 0:06:45]} axb4 {[%emt 0:00:22]} 12. axb4 {[%emt 0:00:07]} Qd7 {[%emt 0:00:41]} 13. b5 {[%emt 0:02:17]} Nd8 {[%emt 0:00:31]} 14. Nf3 {[%emt 0:03:17]} Bh3 {[%emt 0:01:36]} 15. Bg5 {[%emt 0:00:27]} Bxg2 {[%emt 0:00:37]} 16. Kxg2 {[%emt 0:00:02]} Re8 {[%emt 0:05:15]} 17. Bxf6 {[%emt 0:00:05]} Bxf6 {[%emt 0:00:07]} 18. Nd5 {[%emt 0:00:09]} Bg7 {[%emt 0:00:53]} 19. b6 {[%emt 0:01:47]} c6 {[%emt 0:08:24]} 20. Nc7 {[%emt 0:00:23]} Ne6 {[%emt 0:00:09]} 21. Nxa8 {[%emt 0:00:29]} Rxa8 {[%emt 0:00:09]} 22. Qc2 {[%emt 0:06:20]} f5 {[%emt 0:01:15]} 23. e3 {[%emt 0:04:15]} Rf8 {[%emt 0:02:01]} 24. Qd2 {[%emt 0:03:49]} f4 {[%emt 0:00:48]} 25. exf4 {[%emt 0:00:48]} Nxf4+ {[%emt 0:02:08]} 26. Kh1 {[%emt 0:02:58]} Qh3 {[%emt 0:03:19]} 27. Rg1 {[%emt 0:05:58]} Bh6 {[%emt 0:05:00]} 28. Qd1 {[%emt 0:05:51]} Ne6 {[%emt 0:04:37]} 29. Rf1 {[%emt 0:06:36]} Nc5 {[%emt 0:06:32]} 30. d4 {[%emt 0:05:37]} exd4 {[%emt 0:02:07]} 31. Nxd4 {[%emt 0:00:10]} Ne4 {[%emt 0:01:06]} 32. Qe2 {[%emt 0:11:51]} Nd2 {[%emt 0:04:35]} 33. Rfd1 {[%emt 0:04:48]} Nxb1 {[%emt 0:01:18]} 34. Rxb1 {[%emt 0:00:05]} Qd7 {[%emt 0:03:07]} 35. Re1 {[%emt 0:02:07]} Bg7 {[%emt 0:00:14]} 36. Nb3 {[%emt 0:05:33]} Kf7 {[%emt 0:02:06]} 37. Kg2 {[%emt 0:02:35]} Bf6 {[%emt 0:00:56]} 38. Qd3 {[%emt 0:04:37]} Re8 {[%emt 0:07:16]} 39. Nc5 {[%emt 0:01:37]} Qf5 {[%emt 0:02:42]} 40. Qxf5 {[%emt 0:00:05]} gxf5 {[%emt 0:00:17]} 41. Rxe8 {[%emt 0:00:09]} Kxe8 {[%emt 0:00:10]} 42. Nxb7 {[%emt 0:00:18]} Kd7 {[%emt 0:00:41]} 43. c5 {[%emt 0:03:11]} d5 {[%emt 0:00:10]} 44. Na5 {[%emt 0:00:34]} d4 {[%emt 0:02:51]} 45. Kf3 {[%emt 0:00:25]} d3 {[%emt 0:04:27]} 46. Ke3 {[%emt 0:00:09]} Bc3 {[%emt 0:00:08]} 47. Nb3 {[%emt 0:00:32]} Be1 {[%emt 0:01:03]} 48. f3 {[%emt 0:00:09]} h5 {[%emt 0:00:39]} 49. Kxd3 {[%emt 0:00:06]} Bf2 {[%emt 0:00:16]} 50. Nd4 {[%emt 0:00:58]} Bg1 {[%emt 0:00:43]} 51. h3 {[%emt 0:00:08]} Bf2 {[%emt 0:00:53]} 52. Kc4 {[%emt 0:01:49]} 1-0